fUST/lending_fUST_20240201
["ID","MTS","AMOUNT","RATE_DAILY","PERIOD"]
[313075225,1706722238898,-500.0,0.00019178,2]
[313075226,1706722238907,-500.0,0.00019178,2]
[313075227,1706722238917,-655.97,0.00019178,2]
[313075228,1706722238926,-500.0,0.00019178,2]
[313075229,1706722238936,-558.02,0.00019178,2]
[313075230,1706722238945,-9545.75,0.00019178,2]
[313075231,1706722238953,-500.0,0.00019178,2]
[313075232,1706722238963,-1820.76,0.00019178,2]
[313075233,1706722238972,-500.0,0.00019178,2]
[313075234,1706722238981,-882.07,0.00019178,2]
[313075235,1706722238991,-618.8,0.00019178,2]
[313075236,1706722239000,-500.0,0.00019178,2]
[313075237,1706722239009,-2507.0,0.00019178,2]
[313075238,1706722239019,-500.0,0.00019178,2]
[313075239,1706722239028,-1367.79,0.00019178,2]
[313075240,1706722239038,-2202.3,0.00019178,2]
[313075241,1706722239047,-424.25997704,0.00019178,2]
[313075242,1706722239057,-1443.4,0.00019178,2]
[313075243,1706722239066,-500.0,0.00019178,2]
[313075244,1706722239075,-1214.85,0.00019178,2]
[313075245,1706722239084,-500.0,0.00019178,2]
[313075246,1706722239093,-509.16728415,0.00019178,2]
[313075247,1706722239103,-2002.38,0.00019178,2]
[313075248,1706722239114,-2718.43,0.00019178,2]
[313075249,1706722239123,-500.0,0.00019178,2]
[313075250,1706722239132,-3598.82,0.00019178,2]
[313075251,1706722239141,-13589.39,0.00019178,2]
[313075252,1706722239152,-500.0,0.00019178,2]
[313075253,1706722239162,-500.0,0.00019178,2]
[313075254,1706722239171,-7020.85,0.00019178,2]
[313075255,1706722239180,-1225.08,0.00019178,2]
[313075256,1706722239190,-500.0,0.00019178,2]
[313075257,1706722239199,-500.0,0.00019178,2]
[313075258,1706722239208,-500.0,0.00019178,2]
[313075259,1706722239217,-500.0,0.00019178,2]
[313075260,1706722239227,-500.0,0.00019178,2]
[313075261,1706722239236,-500.0,0.00019178,2]
[313075262,1706722239245,-500.0,0.00019178,2]
[313075263,1706722239255,-606.73,0.00019178,2]
[313075264,1706722239264,-1079.37,0.00019178,2]
[313075265,1706722239274,-976.92,0.00019178,2]
[313075266,1706722239283,-1846.85,0.00019178,2]
[313075267,1706722239293,-590.37,0.00019178,2]
[313075268,1706722239302,-500.27,0.00019178,2]
[313075269,1706722239312,-998.61,0.00019178,2]
[313075270,1706722239322,-3030.0,0.00019178,2]
[313075271,1706722239331,-500.0,0.00019178,2]
[313075272,1706722239341,-1058.2,0.00019178,2]
[313075273,1706722239350,-500.0,0.00019178,2]
[313075274,1706722239362,-500.0,0.00019178,2]
[313075275,1706722239371,-500.0,0.00019178,2]
[313075276,1706722239379,-940.88,0.00019178,2]
[313075277,1706722239389,-1272.75,0.00019178,2]
[313075279,1706722239398,-6608.95,0.00019178,2]
[313075280,1706722239407,-165.629364,0.00019178,2]
[313075282,1706722239417,-500.0,0.00019452,2]
[313075284,1706722239426,-500.0,0.00019452,2]
[313075286,1706722239435,-500.0,0.00019452,2]
[313075288,1706722239444,-500.0,0.00019452,2]
[313075290,1706722239453,-500.0,0.00019452,2]
[313075291,1706722239462,-500.0,0.00019452,2]
[313075293,1706722239471,-1581.9,0.00019452,2]
[313075295,1706722239481,-500.0,0.00019452,2]
[313075297,1706722239490,-500.0,0.00019452,2]
[313075298,1706722239499,-500.0,0.00019452,2]
[313075299,1706722239508,-500.0,0.00019452,2]
[313075300,1706722239517,-427.04037808,0.00019452,2]
[313075301,1706722239526,-500.0,0.00019452,2]
[313075302,1706722239535,-500.0,0.00019452,2]
[313075303,1706722239544,-500.0,0.00019452,2]
[313075304,1706722239553,-500.0,0.00019452,2]
[313075305,1706722239562,-629.52,0.00019452,2]
[313075306,1706722239571,-3050.29,0.00019452,2]
[313075307,1706722239580,-500.0,0.00019452,2]
[313075308,1706722239589,-500.0,0.00019452,2]
[313075309,1706722239599,-500.0,0.00019452,2]
[313075310,1706722239608,-500.0,0.00019452,2]
[313075311,1706722239618,-723.07,0.00019452,2]
[313075312,1706722239627,-500.0,0.00019452,2]
[313075313,1706722239635,-1077.94,0.00019452,2]
[313075314,1706722239645,-500.0,0.00019452,2]
[313075315,1706722239654,-500.0,0.00019452,2]
[313075316,1706722239664,-1019.85,0.00019452,2]
[313075317,1706722239673,-500.0,0.00019452,2]
[313075318,1706722239682,-655.97,0.00019452,2]
[313075319,1706722239691,-500.0,0.00019452,2]
[313075320,1706722239700,-558.02,0.00019452,2]
[313075321,1706722239709,-9545.75,0.00019452,2]
[313075322,1706722239718,-1820.76,0.00019452,2]
[313075323,1706722239727,-500.0,0.00019452,2]
[313075324,1706722239737,-882.07,0.00019452,2]
[313075325,1706722239746,-618.8,0.00019452,2]
[313075326,1706722239756,-500.0,0.00019452,2]
[313075327,1706722239765,-2507.0,0.00019452,2]
[313075328,1706722239774,-500.0,0.00019452,2]
[313075329,1706722239783,-1367.79,0.00019452,2]
[313075330,1706722239792,-2202.3,0.00019452,2]
[313075331,1706722239801,-1443.4,0.00019452,2]
[313075332,1706722239810,-500.0,0.00019452,2]
[313075333,1706722239819,-1214.85,0.00019452,2]
[313075334,1706722239829,-500.0,0.00019452,2]
[313075335,1706722239842,-2002.38,0.00019452,2]
[313075336,1706722239851,-2718.43,0.00019452,2]
[313075337,1706722239860,-500.0,0.00019452,2]
[313075338,1706722239870,-3598.82,0.00019452,2]
[313075339,1706722239879,-13589.39,0.00019452,2]
[313075340,1706722239888,-500.0,0.00019452,2]
[313075341,1706722239897,-500.0,0.00019452,2]
[313075342,1706722239906,-7020.85,0.00019452,2]
[313075343,1706722239916,-1225.08,0.00019452,2]
[313075344,1706722239925,-500.0,0.00019452,2]
[313075345,1706722239934,-500.0,0.00019452,2]
[313075346,1706722239943,-500.0,0.00019452,2]
[313075347,1706722239952,-171.81118109,0.00019452,2]
[313075348,1706722239964,-500.0,0.00019452,2]
[313075349,1706722239973,-606.73,0.00019452,2]
[313075350,1706722239983,-1079.37,0.00019452,2]
[313075351,1706722239992,-976.92,0.00019452,2]
[313075352,1706722240001,-1846.85,0.00019452,2]
[313075353,1706722240010,-590.37,0.00019452,2]
[313075355,1706722240020,-500.27,0.00019452,2]
[313075356,1706722240029,-998.61,0.00019452,2]
[313075357,1706722240038,-3030.0,0.00019452,2]
[313075358,1706722240047,-500.0,0.00019452,2]
[313075359,1706722240056,-1058.2,0.00019452,2]
[313075360,1706722240065,-250.07075875,0.00019452,2]
[313075361,1706722240075,-500.0,0.00019452,2]
[313075362,1706722240085,-500.0,0.00019452,2]
[313075363,1706722240095,-940.88,0.00019452,2]
[313075364,1706722240104,-1272.75,0.00019452,2]
[313075365,1706722240114,-6608.95,0.00019452,2]
[313075366,1706722240123,-280.0,0.00019644,2]
[313075367,1706722240133,-500.0,0.00019726,2]
[313075368,1706722240142,-500.0,0.00019726,2]
[313075369,1706722240152,-500.0,0.00019726,2]
[313075370,1706722240162,-500.0,0.00019726,2]
[313075371,1706722240172,-500.0,0.00019726,2]
[313075372,1706722240182,-1581.9,0.00019726,2]
[313075374,1706722240192,-500.0,0.00019726,2]
[313075376,1706722240201,-500.0,0.00019726,2]
[313075378,1706722240210,-500.0,0.00019726,2]
[313075380,1706722240220,-500.0,0.00019726,2]
[313075381,1706722240229,-500.0,0.00019726,2]
[313075382,1706722240239,-500.0,0.00019726,2]
[313075383,1706722240249,-500.0,0.00019726,2]
[313075384,1706722240259,-500.0,0.00019726,2]
[313075385,1706722240270,-629.52,0.00019726,2]
[313075386,1706722240279,-3050.29,0.00019726,2]
[313075387,1706722240289,-500.0,0.00019726,2]
[313075388,1706722240298,-500.0,0.00019726,2]
[313075389,1706722240307,-500.0,0.00019726,2]
[313075390,1706722240317,-723.07,0.00019726,2]
[313075391,1706722240326,-186.8035473,0.00019726,2]
[313075392,1706722240336,-1077.94,0.00019726,2]
[313075393,1706722240345,-1019.85,0.00019726,2]
[313075394,1706722240354,-423.32,0.00019726,2]
[313075395,1706722240364,-655.97,0.00019726,2]
[313075396,1706722240373,-500.0,0.00019726,2]
[313075397,1706722240382,-558.02,0.00019726,2]
[313075398,1706722240393,-9545.75,0.00019726,2]
[313075399,1706722240403,-1820.76,0.00019726,2]
[313075400,1706722240413,-500.0,0.00019726,2]
[313075402,1706722240422,-882.07,0.00019726,2]
[313075404,1706722240431,-618.8,0.00019726,2]
[313075406,1706722240441,-500.0,0.00019726,2]
[313075407,1706722240451,-2507.0,0.00019726,2]
[313075408,1706722240460,-500.0,0.00019726,2]
[313075409,1706722240470,-1367.79,0.00019726,2]
[313075410,1706722240479,-2202.3,0.00019726,2]
[313075411,1706722240488,-1443.4,0.00019726,2]
[313075412,1706722240497,-500.0,0.00019726,2]
[313075413,1706722240505,-1214.85,0.00019726,2]
[313075414,1706722240515,-500.0,0.00019726,2]
[313075415,1706722240524,-2002.38,0.00019726,2]
[313075416,1706722240533,-2718.43,0.00019726,2]
[313075417,1706722240542,-500.0,0.00019726,2]
[313075418,1706722240632,-3598.82,0.00019726,2]
[313075419,1706722240642,-13589.39,0.00019726,2]
[313075420,1706722240651,-500.0,0.00019726,2]
[313075421,1706722240660,-500.0,0.00019726,2]
[313075422,1706722240669,-7020.85,0.00019726,2]
[313075423,1706722240679,-1225.08,0.00019726,2]
[313075424,1706722240688,-500.0,0.00019726,2]
[313075425,1706722240697,-500.0,0.00019726,2]
[313075426,1706722240706,-500.0,0.00019726,2]
[313075427,1706722240715,-500.0,0.00019726,2]
[313075428,1706722240725,-606.73,0.00019726,2]
[313075429,1706722240734,-1079.37,0.00019726,2]
[313075430,1706722240743,-976.92,0.00019726,2]
[313075431,1706722240753,-1846.85,0.00019726,2]
[313075432,1706722240762,-590.37,0.00019726,2]
[313075433,1706722240771,-500.27,0.00019726,2]
[313075434,1706722240781,-998.61,0.00019726,2]
[313075435,1706722240790,-3030.0,0.00019726,2]
[313075436,1706722240799,-1058.2,0.00019726,2]
[313075437,1706722240808,-500.0,0.00019726,2]
[313075438,1706722240817,-500.0,0.00019726,2]
[313075439,1706722240827,-940.88,0.00019726,2]
[313075440,1706722240839,-1272.75,0.00019726,2]
[313075441,1706722240848,-6608.95,0.00019726,2]
[313075442,1706722240857,-500.0,0.0002,2]
[313075443,1706722240870,-500.0,0.0002,2]
[313075444,1706722240879,-539.61078944,0.0002,2]
[313075445,1706722240888,-323.57048434,0.0002,2]
[313075446,1706722240897,-154.98450155,0.0002,2]
[313075447,1706722240906,-1200.08348294,0.0002,2]
[313075448,1706722240917,-178.21239998,0.0002,2]
[313075449,1706722240927,-305.4224279,0.0002,2]
[313075450,1706722240939,-155.01240124,0.0002,2]
[313075451,1706722240948,-500.0,0.0002,2]
[313075452,1706722240957,-1581.9,0.0002,2]
[313075453,1706722240967,-500.0,0.0002,2]
[313075454,1706722240976,-500.0,0.0002,2]
[313075455,1706722240985,-500.0,0.0002,2]
[313075456,1706722240995,-500.0,0.0002,2]
[313075457,1706722241004,-500.0,0.0002,2]
[313075458,1706722241013,-500.0,0.0002,2]
[313075459,1706722241024,-500.0,0.0002,2]
[313075460,1706722241036,-500.0,0.0002,2]
[313075461,1706722241047,-629.52,0.0002,2]
[313075462,1706722241057,-3050.29,0.0002,2]
[313075463,1706722241066,-500.0,0.0002,2]
[313075464,1706722241076,-44380.68568654,0.0002,2]
[313075465,1706722241084,-500.0,0.0002,2]
[313075466,1706722241094,-500.0,0.0002,2]
[313075467,1706722241103,-723.07,0.0002,2]
[313075468,1706722241113,-1077.94,0.0002,2]
[313075469,1706722241122,-500.0,0.0002,2]
[313075470,1706722241131,-1019.85,0.0002,2]
[313075471,1706722241140,-655.97,0.0002,2]
[313075472,1706722241149,-500.0,0.0002,2]
[313075474,1706722241158,-558.02,0.0002,2]
[313075475,1706722241167,-9545.75,0.0002,2]
[313075476,1706722241177,-1820.76,0.0002,2]
[313075477,1706722241186,-258.58735297,0.0002,2]
[313075478,1706722241195,-882.07,0.0002,2]
[313075479,1706722241204,-618.8,0.0002,2]
[313075480,1706722241213,-500.0,0.0002,2]
[313075481,1706722241222,-2507.0,0.0002,2]
[313075482,1706722241232,-500.0,0.0002,2]
[313075483,1706722241241,-1367.79,0.0002,2]
[313075484,1706722241251,-2202.3,0.0002,2]
[313075485,1706722241260,-1443.4,0.0002,2]
[313075486,1706722241269,-500.0,0.0002,2]
[313075487,1706722241278,-1214.85,0.0002,2]
[313075488,1706722241288,-500.0,0.0002,2]
[313075489,1706722241297,-2002.38,0.0002,2]
[313075490,1706722241306,-2718.43,0.0002,2]
[313075491,1706722241315,-500.0,0.0002,2]
[313075492,1706722241324,-3598.82,0.0002,2]
[313075493,1706722241333,-13589.39,0.0002,2]
[313075494,1706722241342,-500.0,0.0002,2]
[313075495,1706722241351,-500.0,0.0002,2]
[313075496,1706722241361,-7020.85,0.0002,2]
[313075497,1706722241370,-1225.08,0.0002,2]
[313075498,1706722241380,-331.03874954,0.0002,2]
[313075499,1706722241389,-500.0,0.0002,2]
[313075500,1706722241399,-500.0,0.0002,2]
[313075501,1706722241408,-500.0,0.0002,2]
[313075502,1706722241417,-606.73,0.0002,2]
[313075503,1706722241426,-1079.37,0.0002,2]
[313075504,1706722241435,-976.92,0.0002,2]
[313075505,1706722241444,-1846.85,0.0002,2]
[313075506,1706722241453,-590.37,0.0002,2]
[313075507,1706722241462,-500.27,0.0002,2]
[313075508,1706722241471,-998.61,0.0002,2]
[313075509,1706722241480,-3030.0,0.0002,2]
[313075510,1706722241490,-1058.2,0.0002,2]
[313075511,1706722241499,-500.0,0.0002,2]
[313075512,1706722241508,-500.0,0.0002,2]
[313075513,1706722241517,-940.88,0.0002,2]
[313075514,1706722241526,-1272.75,0.0002,2]
[313075515,1706722241535,-10570.13826046,0.00020262,2]
[313075516,1706722241545,-18924.51868119,0.00020269,2]
[313075517,1706722241554,-2027.41199096,0.00020272,2]
[313075518,1706722241563,-500.0,0.00020273,2]
[313075519,1706722241572,-1581.9,0.00020273,2]
[313075520,1706722241582,-500.0,0.00020273,2]
[313075521,1706722241591,-500.0,0.00020273,2]
[313075522,1706722241599,-500.0,0.00020273,2]
[313075523,1706722241608,-500.0,0.00020273,2]
[313075524,1706722241618,-500.0,0.00020273,2]
[313075525,1706722241627,-500.0,0.00020273,2]
[313075526,1706722241636,-500.0,0.00020273,2]
[313075527,1706722241645,-500.0,0.00020273,2]
[313075528,1706722241655,-629.52,0.00020273,2]
[313075529,1706722241663,-3050.29,0.00020273,2]
[313075530,1706722241672,-500.0,0.00020273,2]
[313075531,1706722241681,-500.0,0.00020273,2]
[313075532,1706722241691,-500.0,0.00020273,2]
[313075533,1706722241700,-723.07,0.00020273,2]
[313075534,1706722241709,-1077.94,0.00020273,2]
[313075535,1706722241718,-1019.85,0.00020273,2]
[313075536,1706722241727,-655.97,0.00020273,2]
[313075537,1706722241736,-500.0,0.00020273,2]
[313075538,1706722241746,-558.02,0.00020273,2]
[313075539,1706722241755,-9545.75,0.00020273,2]
[313075540,1706722241765,-1820.76,0.00020273,2]
[313075541,1706722241774,-882.07,0.00020273,2]
[313075542,1706722241784,-618.8,0.00020273,2]
[313075543,1706722241793,-500.0,0.00020273,2]
[313075544,1706722241804,-2507.0,0.00020273,2]
[313075545,1706722241815,-500.0,0.00020273,2]
[313075546,1706722241826,-1367.79,0.00020273,2]
[313075547,1706722241838,-2202.3,0.00020273,2]
[313075548,1706722241847,-1443.4,0.00020273,2]
[313075549,1706722241856,-500.0,0.00020273,2]
[313075550,1706722241867,-1214.85,0.00020273,2]
[313075551,1706722241877,-500.0,0.00020273,2]
[313075552,1706722241886,-2002.38,0.00020273,2]
[313075553,1706722241895,-2718.43,0.00020273,2]
[313075554,1706722241904,-500.0,0.00020273,2]
[313075555,1706722241914,-3598.82,0.00020273,2]
[313075556,1706722241924,-13589.39,0.00020273,2]
[313075557,1706722241933,-500.0,0.00020273,2]
[313075558,1706722241943,-500.0,0.00020273,2]
[313075559,1706722241952,-7020.85,0.00020273,2]
[313075560,1706722241963,-1225.08,0.00020273,2]
[313075561,1706722241972,-500.0,0.00020273,2]
[313075562,1706722241981,-500.0,0.00020273,2]
[313075563,1706722241990,-500.0,0.00020273,2]
[313075564,1706722241999,-606.73,0.00020273,2]
[313075565,1706722242008,-1079.37,0.00020273,2]
[313075566,1706722242018,-976.92,0.00020273,2]
[313075567,1706722242027,-1846.85,0.00020273,2]
[313075568,1706722242036,-590.37,0.00020273,2]
[313075569,1706722242046,-500.27,0.00020273,2]
[313075570,1706722242055,-3030.0,0.00020273,2]
[313075571,1706722242064,-998.61,0.00020273,2]
[313075572,1706722242074,-1058.2,0.00020273,2]
[313075573,1706722242085,-372.95353061,0.00020273,2]
[313075574,1706722242094,-381.07651183,0.00020273,2]
[313075575,1706722242104,-940.88,0.00020273,2]
[313075576,1706722242113,-1272.75,0.00020273,2]
[313075577,1706722242122,-500.0,0.00020547,2]
[313075578,1706722242132,-1581.9,0.00020547,2]
[313075579,1706722242141,-500.0,0.00020547,2]
[313075580,1706722242151,-500.0,0.00020547,2]
[313075581,1706722242160,-646.41155429,0.00020547,2]
[313075582,1706722242170,-500.0,0.00020547,2]
[313075583,1706722242179,-500.0,0.00020547,2]
[313075584,1706722242189,-500.0,0.00020547,2]
[313075585,1706722242198,-310.15523794,0.00020547,2]
[313075586,1706722242206,-629.52,0.00020547,2]
[313075587,1706722242217,-3050.29,0.00020547,2]
[313075588,1706722242227,-500.0,0.00020547,2]
[313075589,1706722242236,-500.0,0.00020547,2]
[313075590,1706722242247,-507.49216995,0.00020547,2]
[313075591,1706722242257,-723.07,0.00020547,2]
[313075592,1706722242266,-1077.94,0.00020547,2]
[313075593,1706722242276,-151.0,0.00020547,2]
[313075594,1706722242286,-1019.85,0.00020547,2]
[313075595,1706722242296,-655.97,0.00020547,2]
[313075596,1706722242305,-500.0,0.00020547,2]
[313075597,1706722242314,-558.02,0.00020547,2]
[313075598,1706722242324,-9545.75,0.00020547,2]
[313075599,1706722242333,-1820.76,0.00020547,2]
[313075600,1706722242343,-882.07,0.00020547,2]
[313075602,1706722242352,-618.8,0.00020547,2]
[313075603,1706722242362,-500.0,0.00020547,2]
[313075604,1706722242371,-2507.0,0.00020547,2]
[313075605,1706722242380,-500.0,0.00020547,2]
[313075606,1706722242389,-1367.79,0.00020547,2]
[313075607,1706722242399,-2202.3,0.00020547,2]
[313075608,1706722242408,-1443.4,0.00020547,2]
[313075609,1706722242417,-449.15887531,0.00020547,2]
[313075610,1706722242426,-1214.85,0.00020547,2]
[313075611,1706722242435,-500.0,0.00020547,2]
[313075612,1706722242445,-2002.38,0.00020547,2]
[313075614,1706722242454,-2718.43,0.00020547,2]
[313075615,1706722242463,-500.0,0.00020547,2]
[313075617,1706722242472,-3598.82,0.00020547,2]
[313075619,1706722242482,-13589.39,0.00020547,2]
[313075620,1706722242492,-500.0,0.00020547,2]
[313075621,1706722242501,-500.0,0.00020547,2]
[313075622,1706722242510,-262.59227513,0.00020547,2]
[313075654,1706722242932,-6758.25772487,0.00020547,2]
[313075655,1706722242941,-220.19423055,0.00020547,2]
[313075656,1706722242953,-1004.88576945,0.00020547,2]
[313075657,1706722242962,-500.0,0.00020547,2]
[313075658,1706722242971,-500.0,0.00020547,2]
[313075659,1706722242980,-500.0,0.00020547,2]
[313075660,1706722242989,-606.73,0.00020547,2]
[313075661,1706722242997,-1079.37,0.00020547,2]
[313075662,1706722243007,-1274.68185474,0.00020547,2]
[313075664,1706722243278,-500.0,0.00019178,2]
[313075665,1706722243287,-500.0,0.00019178,2]
[313075666,1706722243297,-500.0,0.00019452,2]
[313075667,1706722243306,-500.0,0.00019452,2]
[313075668,1706722243316,-500.0,0.00019726,2]
[313075669,1706722243325,-4683.92467348,0.0002,2]
[313075670,1706722243336,-1925.02532652,0.0002,2]
[313075671,1706722243346,-500.0,0.0002,2]
[313075672,1706722243355,-1181.25187373,0.00020273,2]
[313075673,1706722243368,-3024.57019212,0.00020273,2]
[313075705,1706722246388,-0.63244377,0.00019177,2]
[313075706,1706722246410,-155.41609689,0.00019176,2]
[313075707,1706722246419,-1355.1996109,0.00019177,2]
[313075727,1706722604650,-166.94158022,0.00017059,2]
[313075728,1706722604672,-154.98450155,0.0001706,2]
[313075729,1706722604694,-495.02412602,0.00017061,2]
[313075730,1706722604716,-154.98450155,0.00017062,3]
[313075731,1706722604736,-527.4703049,0.0001796,2]
[313075732,1706722604756,-154.98450155,0.0001796,2]
[313075733,1706722604777,-154.98450155,0.0001796,2]
[313075734,1706722604797,-10236.62598266,0.0001796,2]
[313075740,1706722710450,155.0,0.00015347,2]
[313075741,1706722726755,2789.49761067,0.00017053,5]
[313075743,1706722788484,155.0,0.00015338,2]
[313075747,1706722876471,155.0,0.00014934,2]
[313075753,1706723024337,124.40590025,0.00015577,2]
[313075755,1706723064603,-155.0,0.00015572,2]
[313075756,1706723064624,-2042.05188148,0.00015572,2]
[313075757,1706723064644,-155.0,0.00015572,2]
[313075758,1706723064665,-1743.62109759,0.00015572,2]
[313075759,1706723064781,-500.0,0.00015573,2]
[313075760,1706723064804,-495.02412602,0.00015574,2]
[313075761,1706723064827,-1698.26983511,0.00015574,2]
[313075762,1706723064846,-3750.94562833,0.00015574,2]
[313075763,1706723064866,-243.52267023,0.00015575,2]
[313075764,1706723064887,-620.32592529,0.00015575,2]
[313075765,1706723064908,-171.19787537,0.00015575,2]
[313075766,1706723064929,-166.94158022,0.00015576,2]
[313075767,1706723064949,-1996.50298693,0.00015576,2]
[313075768,1706723064970,-589.27783595,0.00015576,2]
[313075769,1706723064991,-155.17934871,0.00015576,2]
[313075770,1706723065013,-608.8922524,0.00015576,2]
[313075771,1706723065035,-1793.24695637,0.00015577,2]
[313075773,1706723133059,-1774.94151371,0.00015565,2]
[313075774,1706723133080,-181.26836622,0.00015565,2]
[313075775,1706723133103,-155.0,0.00015565,2]
[313075776,1706723133124,-3490.97720869,0.00015566,2]
[313075777,1706723133149,-167.27020705,0.00015566,2]
[313075778,1706723133172,-261.50125071,0.00015567,2]
[313075779,1706723133196,-1486.10490715,0.00015567,2]
[313075780,1706723133225,-694.71835688,0.00015568,2]
[313075781,1706723133247,-904.96914882,0.00015568,2]
[313075782,1706723133273,-260.71148909,0.00015568,2]
[313075783,1706723133298,-199.49499047,0.00015569,2]
[313075784,1706723133319,-689.08875682,0.00015569,2]
[313075785,1706723133340,-155.0,0.00015569,2]
[313075786,1706723133362,-155.0,0.00015569,2]
[313075787,1706723133385,-562.41090453,0.00015569,2]
[313075788,1706723133407,-1244.16147081,0.0001557,2]
[313075789,1706723133428,-175.45847318,0.0001557,2]
[313075790,1706723133450,-1295.45037711,0.0001557,2]
[313075791,1706723133587,-19892.62116688,0.0001557,2]
[313075792,1706723133616,-471.35573788,0.0001557,2]
[313075793,1706723133637,-5216.89568329,0.00015571,2]
[313075794,1706723133658,-4820.73788709,0.00015571,2]
[313075795,1706723133679,-37015.11340777,0.00015572,2]
[313075796,1706723133701,-620.0257606,0.00015574,2]
[313075797,1706723133724,-155.82908651,0.00015574,2]
[313075798,1706723133744,-500.0,0.00015574,2]
[313075799,1706723133766,-495.02412602,0.00015574,2]
[313075800,1706723133787,-180.51124615,0.00015574,2]
[313075801,1706723133808,-1698.26983511,0.00015574,2]
[313075802,1706723133831,-155.17934871,0.00015574,2]
[313075803,1706723133852,-629.7977394,0.00015574,2]
[313075804,1706723133874,-744.96856662,0.00015574,2]
[313075805,1706723133895,-2106.9014739,0.00015574,2]
[313075806,1706723133916,-1996.50298693,0.00015575,2]
[313075807,1706723133937,-17237.23750588,0.00015577,2]
[313075808,1706723134026,18930.40431998,0.00015565,2]
[313075809,1706723134185,3750.94562833,0.00015564,2]
[313075810,1706723134622,30312.15107171,0.00015569,2]
[313075811,1706723153953,3323.55834132,0.00015255,2]
[313075818,1706723296110,171.16873058,0.00015459,2]
[313075848,1706723433710,-689.08875682,0.0001555,2]
[313075849,1706723433720,-562.41090453,0.0001555,2]
[313075850,1706723433729,-2931.60033865,0.0001555,2]
[313075851,1706723433741,-1802.87586728,0.0001555,2]
[313075852,1706723433752,-32280.63720184,0.0001555,2]
[313075853,1706723433763,-83824.13419779,0.0001555,2]
[313075854,1706723433772,-155.17934871,0.00015551,2]
[313075855,1706723433781,-12357.90351471,0.00015551,2]
[313075910,1706723439521,-8570.51658795,0.00015551,2]
[313075912,1706723439533,-166.94158022,0.00015552,2]
[313075914,1706723439544,-1743.62109759,0.00015552,2]
[313075917,1706723439557,-904.96914882,0.00015552,2]
[313075919,1706723439569,-21715.3088828,0.00015552,2]
[313075921,1706723439579,-19892.62116688,0.00015552,2]
[313075923,1706723439590,-4820.73788709,0.00015553,2]
[313075926,1706723439601,-155.00155002,0.00015559,2]
[313075928,1706723439616,-155.01395126,0.00015562,2]
[313075930,1706723439627,-2106.9014739,0.00015562,2]
[313075932,1706723439639,-1293.90817973,0.00015567,2]
[313075935,1706723439651,-1484.85665607,0.00015567,2]
[313075937,1706723439662,-471.21066683,0.00015567,2]
[313075939,1706723439674,-155.58364586,0.00015567,2]
[313075942,1706723439685,-156.02158942,0.00015567,2]
[313075946,1706723439697,-175.1104275,0.00015567,2]
[313075948,1706723439710,-732.46427539,0.00015567,2]
[313075950,1706723439722,-167.18325391,0.00015567,2]
[313075953,1706723439734,-3742.43980017,0.00015567,2]
[313075955,1706723439748,-165.38202706,0.0001657,2]
[313075958,1706723439760,-860.17493763,0.0001657,2]
[313075960,1706723439773,-161.28090304,0.0001657,2]
[313075962,1706723439783,-170.69308048,0.0001657,2]
[313075964,1706723439793,-243.57157658,0.0001657,2]